fUSD/lending_fUSD_20260610
["ID","MTS","AMOUNT","RATE_DAILY","PERIOD"]
[424735563,1781099441000,-700.21150561,0.00012479,2]
[424735565,1781099441000,-700.21150561,0.00012479,2]
[424735561,1781099441000,-700.21150561,0.00012479,2]
[424735562,1781099441000,-700.21150561,0.00012479,2]
[424735555,1781099441000,-713.17838536,0.00012479,2]
[424735558,1781099441000,-700.21150561,0.00012479,2]
[424735570,1781099441000,-595712.21602366,0.0001248,2]
[424735567,1781099441000,-700.21150561,0.00012479,2]
[424735556,1781099441000,-700.21150561,0.00012479,2]
[424735557,1781099441000,-700.21150561,0.00012479,2]
[424735547,1781099441000,-713.17838536,0.00012479,2]
[424735545,1781099441000,-713.17838536,0.00012479,2]
[424735550,1781099441000,-713.17838536,0.00012479,2]
[424735549,1781099441000,-713.17838536,0.00012479,2]
[424735548,1781099441000,-713.17838536,0.00012479,2]
[424735552,1781099441000,-713.17838536,0.00012479,2]
[424735560,1781099441000,-700.21150561,0.00012479,2]
[424735554,1781099441000,-713.17838536,0.00012479,2]
[424735553,1781099441000,-713.17838536,0.00012479,2]
[424735551,1781099441000,-713.17838536,0.00012479,2]
[424735610,1781099443000,-11067.25982418,0.0001266,2]
[424735598,1781099443000,-500.0,0.0001255,2]
[424735601,1781099443000,-229.0,0.0001255,2]
[424735602,1781099443000,-224.0,0.0001255,2]
[424735599,1781099443000,-398.55214161,0.0001255,2]
[424735600,1781099443000,-228.0,0.0001255,2]
[424735597,1781099443000,-500.0,0.0001255,2]
[424735596,1781099443000,-500.0,0.0001255,2]
[424735591,1781099443000,-500.0,0.0001255,2]
[424735594,1781099443000,-500.0,0.0001255,2]
[424735595,1781099443000,-500.0,0.0001255,2]
[424735592,1781099443000,-500.0,0.0001255,2]
[424735590,1781099443000,-201.22823464,0.0001255,2]
[424735589,1781099443000,-150.0,0.0001255,2]
[424735587,1781099443000,-904287.78397634,0.0001248,2]
[424735588,1781099443000,-150.0,0.0001255,2]
[424735608,1781099443000,-300.54214327,0.00012634,2]
[424735593,1781099443000,-500.0,0.0001255,2]
[424735605,1781099443000,-234545.16555343,0.0001258,2]
[424735606,1781099443000,-2000.0,0.00012597,2]
[424735603,1781099443000,-228.0,0.0001255,2]
[424735604,1781099443000,-229.0,0.0001255,2]
[424735627,1781099443000,-31.53635024,0.00012797,6]
[424735625,1781099443000,-500.0,0.00012797,4]
[424735623,1781099443000,-500.0,0.00012797,2]
[424735624,1781099443000,-500.0,0.00012797,3]
[424735617,1781099443000,-200.0,0.00012697,2]
[424735622,1781099443000,-200.0,0.00012697,2]
[424735618,1781099443000,-29698.2035623,0.00012697,2]
[424735614,1781099443000,-221.0,0.00012697,2]
[424735626,1781099443000,-500.0,0.00012797,5]
[424735616,1781099443000,-225.0,0.00012697,2]
[424735613,1781099443000,-223.0,0.00012697,2]
[424735619,1781099443000,-200.0,0.00012697,2]
[424735621,1781099443000,-200.0,0.00012697,2]
[424735615,1781099443000,-228.0,0.00012697,2]
[424735612,1781099443000,-229.0,0.00012697,2]
[424735611,1781099443000,-221.0,0.00012697,2]
[424735607,1781099443000,-387.32,0.00012622,2]
[424735609,1781099443000,-6069.75941859,0.0001266,2]
[424735620,1781099443000,-160.72333781,0.00012697,2]
[424735631,1781099444000,-200.0,0.00012824,2]
[424735629,1781099444000,-500.0,0.00012797,7]
[424735630,1781099444000,-200.0,0.00012824,2]
[424735628,1781099444000,-468.46364976,0.00012797,6]
[424735632,1781099444000,-173.32180028,0.00012824,2]
[424735657,1781099445000,-290.84014144,0.00013366,2]
[424735648,1781099445000,-200.0,0.00013082,2]
[424735655,1781099445000,-6069.75941859,0.0001322,2]
[424735656,1781099445000,-11067.25982418,0.0001322,2]
[424735651,1781099445000,-200.0,0.00013213,2]
[424735652,1781099445000,-200.0,0.00013213,2]
[424735654,1781099445000,-200.0,0.00013213,2]
[424735653,1781099445000,-200.0,0.00013213,2]
[424735650,1781099445000,-500.0,0.00013121,10]
[424735659,1781099445000,-6069.75941859,0.000135,2]
[424735649,1781099445000,-200.0,0.00013082,2]
[424735647,1781099445000,-200.0,0.00013082,2]
[424735635,1781099445000,-281.52636664,0.00012862,2]
[424735642,1781099445000,-200.0,0.00012952,2]
[424735644,1781099445000,-200.0,0.00012952,2]
[424735640,1781099445000,-11067.25982418,0.0001294,2]
[424735643,1781099445000,-200.0,0.00012952,2]
[424735645,1781099445000,-500.0,0.00012997,9]
[424735641,1781099445000,-200.0,0.00012952,2]
[424735639,1781099445000,-6069.75941859,0.0001294,2]
[424735636,1781099445000,-575.68363336,0.00012862,2]
[424735638,1781099445000,-387.32,0.00012916,2]
[424735637,1781099445000,-500.0,0.00012898,8]
[424735634,1781099445000,-200.0,0.00012824,2]
[424735633,1781099445000,-26.67819972,0.00012824,2]
[424735646,1781099445000,-200.0,0.00013082,2]
[424735658,1781099445000,-829.93,0.00013469,2]
[424735671,1781099445000,-500.0,0.00013698,2]
[424735661,1781099445000,-255.0,0.00013517,2]
[424735690,1781099445000,-500.0,0.00013698,2]
[424735688,1781099445000,-500.0,0.00013698,2]
[424735691,1781099445000,-500.0,0.00013698,2]
[424735689,1781099445000,-500.0,0.00013698,2]
[424735686,1781099445000,-500.0,0.00013698,2]
[424735682,1781099445000,-500.0,0.00013698,2]
[424735660,1781099445000,-11067.25982418,0.000135,2]
[424735684,1781099445000,-500.0,0.00013698,2]
[424735683,1781099445000,-360.74444668,0.00013698,2]
[424735681,1781099445000,-502.29186961,0.00013698,2]
[424735680,1781099445000,-500.0,0.00013698,2]
[424735674,1781099445000,-500.0,0.00013698,2]
[424735676,1781099445000,-502.1677605,0.00013698,2]
[424735685,1781099445000,-500.0,0.00013698,2]
[424735678,1781099445000,-500.0,0.00013698,2]
[424735675,1781099445000,-567.85831353,0.00013698,2]
[424735663,1781099445000,-300.54214327,0.00013574,2]
[424735662,1781099445000,-408.0281042,0.00013537,2]
[424735665,1781099445000,-500.0,0.00013628,2]
[424735666,1781099445000,-500.0,0.00013628,2]
[424735664,1781099445000,-500.0,0.00013628,2]
[424735670,1781099445000,-500.0,0.00013697,11]
[424735667,1781099445000,-500.0,0.00013628,2]
[424735669,1781099445000,-705.09397284,0.0001364,2]
[424735672,1781099445000,-500.0,0.00013698,2]
[424735673,1781099445000,-500.0,0.00013698,2]
[424735668,1781099445000,-635.0,0.00013628,2]
[424735712,1781099446000,-500.0,0.00013698,2]
[424735711,1781099446000,-500.0,0.00013698,2]
[424735710,1781099446000,-240.98630425,0.00013698,2]
[424735713,1781099446000,-500.0,0.00013698,2]
[424735709,1781099446000,-500.0,0.00013698,2]
[424735719,1781099446000,-500.0,0.00013698,2]
[424735715,1781099446000,-500.0,0.00013698,2]
[424735716,1781099446000,-500.0,0.00013698,2]
[424735718,1781099446000,-500.0,0.00013698,2]
[424735717,1781099446000,-500.0,0.00013698,2]
[424735720,1781099446000,-500.0,0.00013698,2]
[424735714,1781099446000,-500.0,0.00013698,2]
[424735708,1781099446000,-500.0,0.00013698,2]
[424735694,1781099446000,-500.0,0.00013698,2]
[424735704,1781099446000,-500.0,0.00013698,2]
[424735703,1781099446000,-500.0,0.00013698,2]
[424735706,1781099446000,-500.0,0.00013698,2]
[424735702,1781099446000,-500.0,0.00013698,2]
[424735701,1781099446000,-539.7266461,0.00013698,2]
[424735697,1781099446000,-500.0,0.00013698,2]
[424735698,1781099446000,-161.54562137,0.00013698,2]
[424735700,1781099446000,-500.0,0.00013698,2]
[424735699,1781099446000,-500.0,0.00013698,2]
[424735696,1781099446000,-500.0,0.00013698,2]
[424735695,1781099446000,-500.0,0.00013698,2]
[424735722,1781099446000,-500.0,0.00013698,2]
[424735692,1781099446000,-500.0,0.00013698,2]
[424735705,1781099446000,-500.0,0.00013698,2]
[424735721,1781099446000,-500.0,0.00013698,2]
[424735707,1781099446000,-500.0,0.00013698,2]
[424735726,1781099446000,-500.0,0.00013698,2]
[424735723,1781099446000,-500.0,0.00013698,2]
[424735754,1781099446000,-657.58,0.00013699,2]
[424735753,1781099446000,-200.0,0.00013699,2]
[424735752,1781099446000,-2500.0,0.00013699,2]
[424735749,1781099446000,-227.0,0.00013699,2]
[424735748,1781099446000,-527.13150524,0.00013698,2]
[424735750,1781099446000,-228.0,0.00013699,2]
[424735747,1781099446000,-500.0,0.00013698,2]
[424735743,1781099446000,-500.0,0.00013698,2]
[424735744,1781099446000,-500.0,0.00013698,2]
[424735745,1781099446000,-500.0,0.00013698,2]
[424735746,1781099446000,-500.0,0.00013698,2]
[424735742,1781099446000,-500.0,0.00013698,2]
[424735741,1781099446000,-500.0,0.00013698,2]
[424735751,1781099446000,-221.0,0.00013699,2]
[424735739,1781099446000,-500.0,0.00013698,2]
[424735740,1781099446000,-500.0,0.00013698,2]
[424735724,1781099446000,-500.0,0.00013698,2]
[424735730,1781099446000,-500.0,0.00013698,2]
[424735731,1781099446000,-500.0,0.00013698,2]
[424735733,1781099446000,-500.0,0.00013698,2]
[424735728,1781099446000,-500.0,0.00013698,2]
[424735729,1781099446000,-500.0,0.00013698,2]
[424735734,1781099446000,-500.0,0.00013698,2]
[424735738,1781099446000,-500.0,0.00013698,2]
[424735735,1781099446000,-500.0,0.00013698,2]
[424735736,1781099446000,-500.0,0.00013698,2]
[424735737,1781099446000,-500.0,0.00013698,2]
[424735732,1781099446000,-500.0,0.00013698,2]
[424735766,1781099447000,-500.0,0.00013699,2]
[424735769,1781099447000,-500.0,0.00013699,2]
[424735770,1781099447000,-500.0,0.00013699,2]
[424735767,1781099447000,-500.0,0.00013699,2]
[424735768,1781099447000,-500.0,0.00013699,2]
[424735765,1781099447000,-500.0,0.00013699,2]
[424735764,1781099447000,-500.0,0.00013699,2]
[424735757,1781099447000,-22258.35,0.00013699,2]
[424735762,1781099447000,-500.0,0.00013699,2]
[424735761,1781099447000,-500.0,0.00013699,2]
[424735760,1781099447000,-500.0,0.00013699,2]
[424735759,1781099447000,-500.0,0.00013699,2]
[424735758,1781099447000,-500.0,0.00013699,2]
[424735755,1781099447000,-29999.99,0.00013699,2]
[424735756,1781099447000,-9999.99,0.00013699,2]
[424735772,1781099447000,-500.0,0.00013699,2]
[424735763,1781099447000,-500.0,0.00013699,2]
[424735771,1781099447000,-500.0,0.00013699,2]
[424735774,1781099447000,-500.0,0.00013699,2]
[424735775,1781099447000,-500.0,0.00013699,2]
[424735773,1781099447000,-500.0,0.00013699,2]
[424735790,1781099447000,-500.0,0.00013699,2]
[424735791,1781099447000,-500.0,0.00013699,2]
[424735789,1781099447000,-500.0,0.00013699,2]
[424735788,1781099447000,-500.0,0.00013699,2]
[424735786,1781099447000,-500.0,0.00013699,2]
[424735785,1781099447000,-500.0,0.00013699,2]
[424735784,1781099447000,-500.0,0.00013699,2]
[424735787,1781099447000,-500.0,0.00013699,2]
[424735781,1781099447000,-500.0,0.00013699,2]
[424735782,1781099447000,-500.0,0.00013699,2]
[424735780,1781099447000,-500.0,0.00013699,2]
[424735777,1781099447000,-500.0,0.00013699,2]
[424735779,1781099447000,-500.0,0.00013699,2]
[424735778,1781099447000,-500.0,0.00013699,2]
[424735783,1781099447000,-500.0,0.00013699,2]
[424735776,1781099447000,-500.0,0.00013699,2]
[424735804,1781099448000,-500.0,0.00013699,2]
[424735807,1781099448000,-582.31592392,0.00013699,2]
[424735808,1781099448000,-500.0,0.00013699,2]
[424735810,1781099448000,-500.0,0.00013699,2]
[424735812,1781099448000,-500.0,0.00013699,2]
[424735811,1781099448000,-500.0,0.00013699,2]
[424735809,1781099448000,-500.0,0.00013699,2]
[424735813,1781099448000,-155.4,0.00013743,2]
[424735803,1781099448000,-500.0,0.00013699,2]
[424735814,1781099448000,-250.0,0.0001378,2]
[424735806,1781099448000,-500.0,0.00013699,2]
[424735816,1781099448000,-11067.25982418,0.0001378,2]
[424735802,1781099448000,-500.0,0.00013699,2]
[424735800,1781099448000,-500.0,0.00013699,2]
[424735799,1781099448000,-500.0,0.00013699,2]
[424735798,1781099448000,-500.0,0.00013699,2]
[424735797,1781099448000,-500.0,0.00013699,2]
[424735796,1781099448000,-500.0,0.00013699,2]
[424735794,1781099448000,-500.0,0.00013699,2]
[424735795,1781099448000,-500.0,0.00013699,2]
[424735793,1781099448000,-500.0,0.00013699,2]
[424735792,1781099448000,-500.0,0.00013699,2]
[424735805,1781099448000,-500.0,0.00013699,2]
[424735818,1781099448000,-500.0,0.00013902,2]
[424735801,1781099448000,-500.0,0.00013699,2]
[424735817,1781099448000,-415.32019761,0.00013855,2]
[424735819,1781099448000,-500.0,0.00013902,2]
[424735843,1781099448000,-6824.56774557,0.00014349,2]
[424735840,1781099448000,-3229.3983419,0.00014349,2]
[424735839,1781099448000,-500.0,0.00014348,2]
[424735838,1781099448000,-500.0,0.00014348,2]
[424735837,1781099448000,-500.0,0.00014348,2]
[424735836,1781099448000,-500.0,0.00014348,2]
[424735835,1781099448000,-510.79675376,0.00014348,2]
[424735834,1781099448000,-228.0,0.00014342,2]
[424735831,1781099448000,-6069.75941859,0.0001434,2]
[424735832,1781099448000,-11067.25982418,0.0001434,2]
[424735833,1781099448000,-222.0,0.00014342,2]
[424735841,1781099448000,-211475.77598305,0.00014349,2]
[424735829,1781099448000,-358.03579873,0.00014249,2]
[424735830,1781099448000,-857.21,0.00014292,2]
[424735815,1781099448000,-6069.75941859,0.0001378,2]
[424735822,1781099448000,-250.0,0.00014,2]
[424735821,1781099448000,-300.54214327,0.00013964,2]
[424735823,1781099448000,-500.0,0.0001401,12]
[424735820,1781099448000,-500.0,0.00013902,2]
[424735826,1781099448000,-11067.25982418,0.0001406,2]
[424735825,1781099448000,-6069.75941859,0.0001406,2]
[424735827,1781099448000,-1969.5388817,0.00014111,2]
[424735828,1781099448000,-2000.0,0.00014155,2]
[424735824,1781099448000,-500.0,0.00014041,2]
[424735846,1781099449000,-10307.02754711,0.00014349,2]
[424735845,1781099449000,-1617.55,0.00014349,2]
[424735874,1781099803000,-224.0,0.00012131,2]
[424735868,1781099803000,-228.0,0.00012131,2]
[424735873,1781099803000,-225.0,0.00012131,2]
[424735871,1781099803000,-227.0,0.00012131,2]
[424735872,1781099803000,-224.0,0.00012131,2]
[424735869,1781099803000,-229.0,0.00012131,2]
[424735870,1781099803000,-229.0,0.00012131,2]
[424735867,1781099803000,-227.0,0.00012131,2]
[424735860,1781099803000,-152.0,0.00011501,7]
[424735866,1781099803000,-224.0,0.00012131,2]
[424735864,1781099803000,-151.0,0.0001192,2]
[424735863,1781099803000,-151.0,0.0001192,2]
[424735861,1781099803000,-151.0,0.0001192,2]
[424735862,1781099803000,-151.0,0.0001192,2]
[424735859,1781099803000,-152.0,0.00011478,7]
[424735858,1781099803000,-152.0,0.00011478,7]
[424735875,1781099803000,-224.0,0.00012131,2]
[424735865,1781099803000,-151.0,0.0001192,2]
[424735877,1781099803000,-226.0,0.00012131,2]
[424735885,1781099803000,-235.03132428,0.00012279,2]
[424735879,1781099803000,-227.0,0.00012131,2]
[424735896,1781099803000,-956.22557264,0.00012378,2]
[424735876,1781099803000,-229.0,0.00012131,2]
[424735895,1781099803000,-956.22557264,0.00012378,2]
[424735893,1781099803000,-956.22557264,0.00012378,2]
[424735892,1781099803000,-956.22557264,0.00012378,2]
[424735891,1781099803000,-956.22557264,0.00012378,2]
[424735890,1781099803000,-956.22557264,0.00012378,2]
[424735887,1781099803000,-2864.08674297,0.00012279,2]
[424735889,1781099803000,-956.22557264,0.00012378,2]
[424735894,1781099803000,-956.22557264,0.00012378,2]
[424735886,1781099803000,-1213.95188379,0.00012279,2]
[424735883,1781099803000,-229.0,0.00012279,2]
[424735884,1781099803000,-225.0,0.00012279,2]
[424735882,1781099803000,-184.288,0.00012131,2]
[424735881,1781099803000,-2068.869,0.00012131,2]
[424735878,1781099803000,-224.0,0.00012131,2]
[424735880,1781099803000,-225.0,0.00012131,2]
[424735888,1781099803000,-738.8136,0.0001228,2]
[424735910,1781099804000,-956.22557264,0.00012378,2]
[424735909,1781099804000,-956.22557264,0.00012378,2]
[424735908,1781099804000,-956.22557264,0.00012378,2]
[424735907,1781099804000,-956.22557264,0.00012378,2]
[424735906,1781099804000,-956.22557264,0.00012378,2]
[424735905,1781099804000,-956.22557264,0.00012378,2]
[424735904,1781099804000,-956.22557264,0.00012378,2]
[424735900,1781099804000,-956.22557264,0.00012378,2]
[424735903,1781099804000,-956.22557264,0.00012378,2]
[424735901,1781099804000,-956.22557264,0.00012378,2]
[424735899,1781099804000,-956.22557264,0.00012378,2]
[424735898,1781099804000,-956.22557264,0.00012378,2]
[424735897,1781099804000,-956.22557264,0.00012378,2]
[424735912,1781099804000,-956.22557264,0.00012378,2]
[424735902,1781099804000,-956.22557264,0.00012378,2]
[424735911,1781099804000,-956.22557264,0.00012378,2]
[424735916,1781099804000,-956.22557264,0.00012378,2]
[424735914,1781099804000,-956.22557264,0.00012378,2]
[424735929,1781099804000,-956.22557264,0.00012378,2]
[424735927,1781099804000,-956.22557264,0.00012378,2]
[424735926,1781099804000,-956.22557264,0.00012378,2]
[424735924,1781099804000,-956.22557264,0.00012378,2]
[424735925,1781099804000,-956.22557264,0.00012378,2]
[424735921,1781099804000,-956.22557264,0.00012378,2]
[424735923,1781099804000,-956.22557264,0.00012378,2]
[424735920,1781099804000,-956.22557264,0.00012378,2]
[424735918,1781099804000,-956.22557264,0.00012378,2]
[424735919,1781099804000,-956.22557264,0.00012378,2]
[424735917,1781099804000,-956.22557264,0.00012378,2]
[424735915,1781099804000,-956.22557264,0.00012378,2]
[424735928,1781099804000,-956.22557264,0.00012378,2]
[424735922,1781099804000,-956.22557264,0.00012378,2]
[424735913,1781099804000,-956.22557264,0.00012378,2]
[424735930,1781099805000,-956.22557264,0.00012378,2]
[424735931,1781099805000,-956.22557264,0.00012378,2]
[424735932,1781099805000,-956.22557264,0.00012378,2]
[424735934,1781099805000,-937.1010612,0.00012378,2]
[424735935,1781099805000,-739.8321304,0.00012378,2]
[424735933,1781099805000,-937.1010612,0.00012378,2]
[424735938,1781099820000,-937.1010612,0.00012378,2]
[424735936,1781099820000,-225.0,0.00012378,2]
[424735937,1781099820000,-197.2689308,0.00012378,2]
[424735939,1781099820000,-937.1010612,0.00012378,2]
[424735940,1781099820000,-937.1010612,0.00012378,2]
[424735942,1781099820000,-937.1010612,0.00012378,2]
[424735944,1781099820000,-316.124702,0.00012378,2]
[424735943,1781099820000,-937.1010612,0.00012378,2]
[424735941,1781099820000,-937.1010612,0.00012378,2]
[424735946,1781100304000,118.5259176,0.00010989,2]
[424735949,1781100395000,-92.18319083,0.0001198,7]
[424735947,1781100395000,-161.1840824,0.00010989,2]
[424735948,1781100395000,-212.82,0.00011965,2]
[424735969,1781100632000,-275.81291912,0.0001,2]
[424735971,1781100632000,-59.81680917,0.0001198,7]
[424735972,1781100632000,-597.85,0.00012065,2]
[424735973,1781100632000,-223.0,0.00012065,2]
[424735974,1781100632000,-87.4418853,0.00012065,2]
[424735970,1781100632000,-155.4,0.00011663,2]
[424735981,1781100633000,-135.5581147,0.00012065,2]
[424735985,1781100633000,-225.0,0.00012065,2]
[424735983,1781100633000,-223.0,0.00012065,2]
[424735982,1781100633000,-228.0,0.00012065,2]
[424735984,1781100633000,-221.0,0.00012065,2]
[424735986,1781100633000,-160.09552482,0.00012178,2]
[424735989,1781100633000,-4731.01595981,0.00012228,2]
[424735988,1781100633000,-374.94758386,0.00012228,2]
[424735987,1781100633000,-1181.09817505,0.00012228,2]
[424735992,1781100633000,-150.0,0.00012271,2]
[424735990,1781100633000,-2168.09710004,0.00012228,2]
[424735994,1781100633000,-250.0,0.00012271,2]
[424735995,1781100633000,-3075.6749,0.00012272,2]
[424735993,1781100633000,-2000.0,0.00012271,2]
[424735996,1781100633000,-76304.75497395,0.00012272,2]
[424735997,1781100633000,-11645.71418842,0.00012272,2]
[424735991,1781100633000,-3527.06118124,0.00012228,2]
[424735998,1781100634000,-1018.91636732,0.00012272,2]
[424736000,1781100634000,-4029.04697502,0.00012272,2]
[424735999,1781100634000,-618.31401655,0.00012272,2]
[424736005,1781100638000,-15133.02303159,0.00012272,2]
[424736014,1781100640000,-671171.87743176,0.00012272,2]
[424736013,1781100640000,-2812.47306973,0.00012272,2]
[424736022,1781100643000,-2646.86417145,0.00012272,2]
[424736021,1781100643000,-223456.07600027,0.00012272,2]
[424736020,1781100643000,-342.01,0.00012272,2]
[424736036,1781100646000,-432.20359297,0.00012272,2]
[424736037,1781100646000,-1518.3426877,0.00012272,2]
[424736055,1781101832000,-856.02,0.00010904,2]
[424736051,1781101832000,-604.93,0.00010795,2]
[424736058,1781101832000,-625.53,0.00011,2]
[424736049,1781101832000,-371.6118058,0.00010351,2]
[424736052,1781101832000,-500.0,0.00010843,3]
[424736053,1781101832000,-1123.291834,0.0001085,2]
[424736050,1781101832000,-1376.62,0.00010757,2]
[424736054,1781101832000,-150.0,0.0001086,2]
[424736056,1781101832000,-317.19,0.00010904,2]
[424736063,1781101832000,-617.81334502,0.00011085,2]
[424736059,1781101832000,-116.36895723,0.00011084,2]
[424736060,1781101832000,-33.63104277,0.00011084,2]
[424736061,1781101832000,-721.9,0.00011085,2]
[424736070,1781101832000,-2.75474175,0.00011206,2]
[424736062,1781101832000,-23870.81665498,0.00011085,2]
[424736064,1781101832000,-166.66,0.00011169,2]
[424736066,1781101832000,-317.19,0.00011177,2]
[424736068,1781101832000,-150.0,0.00011181,2]
[424736057,1781101832000,-166.66,0.00010959,2]
[424736152,1781101843000,-154.81,0.00011441,2]
[424736153,1781101843000,-317.19,0.0001145,2]
[424736154,1781101843000,-166.66,0.00011591,2]
[424736151,1781101843000,-498.2112919,0.00011386,2]
[424736147,1781101843000,-150.0,0.00011226,2]
[424736149,1781101843000,-190.67323439,0.00011382,2]
[424736148,1781101843000,-166.66,0.0001138,2]
[424736145,1781101843000,-492.8291325,0.00011206,2]
[424736146,1781101843000,-4.41612575,0.00011206,2]
[424736150,1781101843000,-193.3194991,0.00011386,2]
[424736155,1781101843000,-151.0,0.00011701,2]
[424736158,1781101843000,-151.0,0.00011701,2]
[424736157,1781101843000,-151.0,0.00011701,2]
[424736156,1781101843000,-151.0,0.00011701,2]
[424736159,1781101843000,-317.19,0.00011722,2]
[424736162,1781101843000,-166.66,0.00011801,2]
[424736166,1781101843000,-561.59219213,0.00012071,2]
[424736164,1781101843000,-166.66,0.00012012,2]
[424736165,1781101843000,-895.45231411,0.00012071,2]
[424736163,1781101843000,-317.19,0.00011995,2]
[424736168,1781101843000,-541.18018009,0.00012071,2]
[424736167,1781101843000,-1633.54405756,0.00012071,2]
[424736161,1781101843000,-298.05884787,0.00011726,2]
[424736160,1781101843000,-201.94115213,0.00011726,2]
[424737533,1781102152000,-6021.68,0.00011183,2]
[424737531,1781102152000,-166.66,0.00010959,2]
[424737532,1781102152000,-166.66,0.00011134,2]
[424737541,1781103031000,-166.66,0.00010959,2]
[424737544,1781103031000,-0.2,0.00011009,2]
[424737542,1781103031000,-150.0,0.00010996,2]
[424737543,1781103031000,-33.24206,0.00011009,2]
[424737566,1781103037000,-163.18794,0.00011009,2]
[424737568,1781103038000,-72.41717766,0.00011108,2]
[424737567,1781103038000,-166.66,0.00011074,2]
[424737576,1781103040000,-724.56,0.00011136,2]
[424737574,1781103040000,-110.85282234,0.00011108,2]
[424737580,1781103040000,-166.66,0.00011305,2]
[424737583,1781103040000,-166.66,0.0001142,2]
[424737582,1781103040000,-155.4,0.00011351,2]
[424737578,1781103040000,-166.66,0.00011189,2]
[424737585,1781103040000,-51.4589708,0.00011494,2]
[424737588,1781103040000,-500.0,0.00011589,2]
[424737587,1781103040000,-835.7,0.00011552,2]
[424737589,1781103040000,-151.0,0.00011701,2]
[424737590,1781103040000,-151.0,0.00011701,2]
[424737586,1781103040000,-166.66,0.00011535,2]
[424737584,1781103040000,-189.6508752,0.00011494,2]
[424737591,1781103041000,-151.0,0.00011701,2]
[424737592,1781103041000,-151.0,0.00011701,2]
[424737593,1781103041000,-500.0,0.00011808,2]
[424737602,1781103041000,-500.0,0.0001197,2]
[424737594,1781103041000,-319.58,0.00011816,2]
[424737600,1781103041000,-519.28369525,0.0001197,2]
[424737595,1781103041000,-500.0,0.0001189,2]
[424737597,1781103041000,-116.61146156,0.0001197,2]
[424737607,1781103042000,-2415.97504605,0.0001197,2]
[424737606,1781103042000,-584.02495395,0.0001197,2]
[424737604,1781103042000,-3814.15244319,0.0001197,2]
[424737605,1781103042000,-4391.32794605,0.0001197,2]
[424737611,1781103045000,-84.02495395,0.0001197,2]
[424737614,1781103045000,-279.04498776,0.00011971,2]
[424737612,1781103045000,-156.68754952,0.00011971,2]
[424737616,1781103045000,-221.0,0.0001201,2]
[424737613,1781103045000,-2853.27418643,0.00011971,2]
[424737618,1781103045000,-221.0,0.00012015,2]
[424737619,1781103045000,-225.0,0.00012015,2]
[424737617,1781103045000,-221.0,0.00012015,2]
[424737620,1781103045000,-150.92453271,0.00012027,2]
[424737615,1781103045000,-1038.43867733,0.00011971,2]
[424737700,1781104001000,-466.18919433,0.000104,5]
[424737715,1781104231000,-470.35144812,0.00010869,2]
[424737717,1781104231000,-979.65,0.0001088,2]
[424737716,1781104231000,-420.31742145,0.00010869,2]
[424737720,1781104231000,-166.66,0.00010959,2]
[424737719,1781104231000,-49.96742145,0.00010954,2]
[424737721,1781104231000,-620.07,0.00011057,2]
[424737722,1781104231000,-166.66,0.00011068,2]
[424737718,1781104231000,-450.03257855,0.00010954,2]
[424737726,1781104231000,-349.1,0.00011397,2]
[424737728,1781104231000,-166.66,0.00011507,2]
[424737732,1781104231000,-2596.59873667,0.00011693,2]
[424737723,1781104231000,-166.66,0.00011178,2]
[424737730,1781104231000,-500.0,0.00011671,2]
[424737725,1781104231000,-188.56,0.00011296,2]